fUSD/lending_fUSD_20240515
["ID","MTS","AMOUNT","RATE_DAILY","PERIOD"]
[327058221,1715762431790,4000.0,8.87e-05,2]
[327058222,1715762431812,4000.0,8.87e-05,2]
[327058223,1715762431834,4000.0,8.87e-05,2]
[327058224,1715762431855,4000.0,8.87e-05,2]
[327058225,1715762431875,4000.0,8.87e-05,2]
[327058226,1715762431896,4000.0,8.87e-05,2]
[327058227,1715762431916,4000.0,8.87e-05,2]
[327058232,1715762534259,193.74,8.219e-05,2]
[327058233,1715762585343,1297.13069397,8.425e-05,2]
[327058234,1715762599363,-409.53251773,8.855e-05,2]
[327058235,1715762599389,-167.79510235,8.855e-05,2]
[327058236,1715762599414,-217.27337615,8.855e-05,2]
[327058237,1715762599440,-155.0,8.856e-05,2]
[327058238,1715762599462,-237.37321948,8.856e-05,2]
[327058239,1715762599484,-2813.02578429,8.856e-05,2]
[327058240,1715762599943,-194.01309238,8.856e-05,2]
[327058241,1715762599967,-194.91493898,8.857e-05,2]
[327058242,1715762599991,-260.48203453,8.857e-05,2]
[327058243,1715762600015,-623.222624,8.857e-05,2]
[327058244,1715762600038,-1624.53118389,8.857e-05,2]
[327058245,1715762600060,-685.9229044,8.858e-05,2]
[327058246,1715762600082,-155.0,8.858e-05,2]
[327058247,1715762600104,-261.91322182,8.858e-05,2]
[327058248,1715762600537,-3021.24366433,8.858e-05,2]
[327058249,1715762600562,-155.0,8.859e-05,2]
[327058250,1715762600587,-823.75633567,8.859e-05,2]
[327058251,1715762601298,-59.23769149,8.859e-05,2]
[327058252,1715762601320,-360.86581876,8.859e-05,2]
[327058253,1715762601343,-523.11653558,8.859e-05,2]
[327058254,1715762601365,-268.16087153,8.86e-05,2]
[327058255,1715762601387,-2788.61908264,8.862e-05,2]
[327058256,1715762602085,-2483.03249931,8.862e-05,2]
[327058257,1715762602109,-1516.96750069,8.864e-05,2]
[327058258,1715762624027,495147.12347385,8.219e-05,2]
[327058259,1715762638861,155.0,8.219e-05,2]
[327058260,1715762647830,442.02914177,8.219e-05,2]
[327058261,1715762656027,7159.76881584,8.219e-05,2]
[327058262,1715762660731,155.80272722,8.219e-05,2]
[327058266,1715762810206,565.35,8.219e-05,2]
[327058290,1715763032228,-155.0,8.622e-05,2]
[327058291,1715763032238,-379.73800947,8.623e-05,2]
[327058292,1715763032249,-143.37852611,8.623e-05,2]
[327058293,1715763032259,-7513.01102661,8.623e-05,2]
[327058294,1715763032269,-623.222624,8.624e-05,2]
[327058295,1715763032279,-217.27337615,8.624e-05,2]
[327058296,1715763032288,-9482.13385019,8.625e-05,2]
[327058297,1715763032297,-4722.888903,8.628e-05,2]
[327058298,1715763032308,-150.0,8.672e-05,2]
[327058299,1715763032317,-260.48203453,8.862e-05,2]
[327058300,1715763032327,-3055.224914,8.864e-05,2]
[327058301,1715763032337,-625.89341421,8.864e-05,2]
[327058302,1715763032347,-155.04716525,8.868e-05,2]
[327058303,1715763032357,-1796.68324795,8.868e-05,2]
[327058304,1715763032369,-424.2977345,8.868e-05,2]
[327058305,1715763032379,-2186.5524255,8.868e-05,2]
[327058306,1715763032395,-863.65940788,8.868e-05,2]
[327058307,1715763032405,-158.39167548,8.868e-05,2]
[327058308,1715763032415,-194.23677133,8.868e-05,2]
[327058309,1715763032424,-410.39127525,8.868e-05,2]
[327058310,1715763032434,-3269.89847617,8.868e-05,2]
[327058311,1715763032444,-238.24205928,8.868e-05,2]
[327058312,1715763032453,-284.98562185,8.868e-05,2]
[327058313,1715763032467,-155.81514836,8.868e-05,2]
[327058314,1715763032477,-336.52302392,8.868e-05,2]
[327058315,1715763032487,-287.89247237,8.868e-05,2]
[327058316,1715763032499,-370.4593911,8.868e-05,2]
[327058317,1715763032510,-168.33469646,8.868e-05,2]
[327058318,1715763032519,-118.45591244,8.869e-05,2]
[327058319,1715763032536,-623.17277901,8.869e-05,2]
[327058320,1715763032555,-298.93652719,8.869e-05,2]
[327058321,1715763032564,-1000.0,8.87e-05,2]
[327058322,1715763032574,-1285.20152074,8.945e-05,2]
[327058323,1715763032585,-206.07247994,9.323e-05,2]
[327058324,1715763032594,-150.99,9.67e-05,2]
[327058325,1715763032604,-499.99,9.67e-05,2]
[327058326,1715763032614,-14092.63,9.931e-05,2]
[327058327,1715763032624,-250.0,0.00010019,2]
[327058328,1715763032633,-217.2,0.00010023,2]
[327058329,1715763032643,-603.82263539,0.00010182,2]
[327058330,1715763032656,-2281.46345512,0.00010182,2]
[327058331,1715763032676,-608.15390949,0.00010182,2]
[327058332,1715763032686,-993.25,0.00010238,2]
[327058333,1715763032696,-371.93,0.00010254,2]
[327058334,1715763032705,-305.37480479,0.00010398,2]
[327058335,1715763032715,-250.27,0.00010411,2]
[327058336,1715763032724,-158.33,0.00010468,2]
[327058337,1715763032733,-128.49200233,0.0001048,2]
[327058363,1715763033711,-269.0000005,0.0001048,2]
[327058364,1715763033724,-167.85799717,0.0001048,2]
[327058365,1715763033735,-158.33,0.00010605,2]
[327058366,1715763033744,-158.33,0.00010741,2]
[327058367,1715763033753,-158.33,0.00010878,2]
[327058368,1715763033764,-1000.0,0.00010908,2]
[327058369,1715763033779,-150.0,0.00010959,2]
[327058370,1715763033794,-784.88,0.00010959,2]
[327058371,1715763033804,-158.33,0.00011014,2]
[327058372,1715763033816,-632.08988933,0.00011038,2]
[327058373,1715763033831,-833.36001832,0.00011038,2]
[327058374,1715763033844,-537.12016184,0.00011038,2]
[327058375,1715763033857,-299.66504719,0.00011038,2]
[327058376,1715763033868,-308.807424,0.00011038,2]
[327058377,1715763033922,-2062.06913576,0.00011038,2]
[327058378,1715763033932,-219.39,0.00011039,2]
[327058379,1715763033941,-217.2,0.00011276,2]
[327058380,1715763033951,-5733.35086424,0.00011328,7]
[327058381,1715763033963,-705.76,0.00011328,7]
[327058405,1715763038359,-275.96458678,8.621e-05,2]
[327058406,1715763038397,-607.02944038,8.621e-05,2]
[327058407,1715763038407,-1599.50354593,0.00011328,7]
[327058408,1715763038416,-269.1365044,0.00011726,2]
[327058409,1715763038428,-486.83097929,0.00011726,2]
[327058410,1715763038439,-244.03251631,0.00011726,2]
[327058411,1715763038448,-80.92412567,0.00011726,2]
[327058412,1715763038460,-358.69487433,0.00011726,2]
[327058413,1715763038469,-4398.66598795,0.00011727,2]
[327058414,1715763038480,-419.64033693,0.00011727,2]
[327058415,1715763038495,-584.50013071,0.00011727,2]
[327058416,1715763038507,-3499.8,0.00011727,2]
[327058417,1715763038518,-21249.82404441,0.00011727,2]
[327058418,1715763038528,-1000.0,0.00011727,2]
[327058419,1715763038539,-20216.6879,0.00011727,2]
[327058420,1715763038548,-7408.1869,0.00011732,2]
[327058421,1715763038557,-523.66,0.00011753,2]
[327058422,1715763038566,-155.78,0.00011753,2]
[327058423,1715763038576,-163.35,0.00011753,2]
[327058424,1715763038585,-420.44,0.00011753,2]
[327058425,1715763038594,-420.44,0.00011753,2]
[327058426,1715763038603,-523.66,0.00011753,2]
[327058427,1715763038612,-29045.20468,0.000118,2]
[327058428,1715763038621,-512.83340631,0.00011807,2]
[327058429,1715763038631,-800.0,0.00011808,2]
[327058430,1715763038640,-160.99,0.00011817,2]
[327058431,1715763038649,-10000.0,0.00011819,2]
[327058432,1715763038658,-155.19873687,0.00011825,2]
[327058433,1715763038667,-5763.8297,0.00011826,2]
[327058434,1715763038677,-60052.6646,0.00011826,2]
[327058435,1715763038686,-10000.0,0.00011827,2]
[327058436,1715763038696,-172.44379033,0.00011827,2]
[327058437,1715763038705,-57605.29194213,0.00011827,2]
[327058438,1715763038715,-317.67127195,0.00011827,2]
[327058439,1715763038724,-4226.85265144,0.00011827,2]
[327058440,1715763038733,-183.27059639,0.00011827,2]
[327058441,1715763038742,-200.0,0.00011831,2]
[327058442,1715763038752,-500.0,0.00011831,2]
[327058444,1715763038761,-200.0,0.00011832,2]
[327058446,1715763038771,-1000.0,0.00011832,2]
[327058448,1715763038780,-500.0,0.00011832,2]
[327058450,1715763038790,-500.0,0.00011832,2]
[327058452,1715763038799,-317.67127195,0.00011864,2]
[327058454,1715763038808,-4226.85265143,0.00011864,2]
[327058456,1715763038820,-183.27059638,0.00011864,2]
[327058458,1715763038829,-57605.2919421,0.00011879,2]
[327058460,1715763038839,-800.0,0.0001189,2]
[327058462,1715763038848,-157.60467194,0.00011899,2]
[327058464,1715763038857,-5000.0,0.000119,2]
[327058465,1715763038867,-317.67127195,0.000119,2]
[327058466,1715763038876,-4226.85265143,0.000119,2]
[327058467,1715763038886,-325.50423677,0.00011915,2]
[327058468,1715763038895,-160.99,0.00011915,2]
[327058469,1715763038904,-160.99,0.00011916,2]
[327058470,1715763038913,-325.50423677,0.00011917,2]
[327058471,1715763038922,-325.50423677,0.00011917,2]
[327058472,1715763038932,-160.99,0.00011917,2]
[327058473,1715763038941,-160.99,0.00011917,2]
[327058474,1715763038950,-160.99,0.00011917,2]
[327058475,1715763038959,-3085.0,0.00011918,2]
[327058476,1715763038968,-3257.0,0.00011918,2]
[327058477,1715763038977,-456.98920519,0.00011919,2]
[327058478,1715763038986,-6077.9357048,0.00011922,2]
[327058479,1715763038995,-7512.480953,0.00011922,2]
[327058480,1715763039005,-68364.7451451,0.00011922,2]
[327058481,1715763039014,-231.50937851,0.00011923,2]
[327058482,1715763039024,-1483.60627203,0.00011923,2]
[327058483,1715763039033,-155.21291681,0.00011923,2]
[327058484,1715763039043,-167.79243885,0.00011923,2]
[327058485,1715763039052,-1222.42408721,0.00011923,2]
[327058486,1715763039062,-155.29631137,0.00011923,2]
[327058487,1715763039071,-155.06893201,0.00011923,2]
[327058488,1715763039081,-1890.79854751,0.00011923,2]
[327058489,1715763039090,-1092.21850017,0.00011923,2]
[327058490,1715763039099,-1379.88066855,0.00011923,2]
[327058491,1715763039109,-1137.94257999,0.00011923,2]
[327058492,1715763039118,-655.88237123,0.00011923,2]
[327058493,1715763039127,-377.69271181,0.00011923,2]
[327058494,1715763039136,-2214.05733892,0.00011923,2]
[327058495,1715763039146,-1246.5444,0.00011923,2]
[327058496,1715763039155,-359.06297565,0.00011923,2]
[327058497,1715763039164,-3832.1500568,0.00011923,2]
[327058498,1715763039174,-789.12600427,0.00011923,2]
[327058499,1715763039184,-170.94453194,0.00011923,2]
[327058500,1715763039193,-156.51438352,0.00011924,2]
[327058501,1715763039203,-281.05079772,0.00011924,2]
[327058502,1715763039212,-156.24718338,0.00011924,2]
[327058503,1715763039222,-155.08069046,0.00011924,2]
[327058504,1715763039231,-490.48999384,0.00011924,2]
[327058505,1715763039241,-259.35945223,0.00011924,2]
[327058506,1715763039251,-281.81285646,0.00011924,2]
[327058507,1715763039260,-293.06056207,0.00011924,2]
[327058508,1715763039270,-280.41010483,0.00011924,2]
[327058509,1715763039279,-312.80892937,0.00011924,2]
[327058510,1715763039289,-155.12665646,0.00011924,2]
[327058511,1715763039298,-155.0,0.00011924,2]
[327058512,1715763039307,-217.68183676,0.00011924,2]
[327058513,1715763039317,-783.62102359,0.00011924,2]
[327058514,1715763039326,-155.85127597,0.00011924,2]
[327058515,1715763039335,-155.39289688,0.00011924,2]
[327058516,1715763039344,-156.20859514,0.00011924,2]
[327058517,1715763039354,-308.29127217,0.00011924,2]
[327058518,1715763039363,-223.19066619,0.00011924,2]
[327058519,1715763039372,-418.64073635,0.00011924,2]
[327058520,1715763039382,-155.79864365,0.00011924,2]
[327058521,1715763039391,-2325.27290029,0.00011924,2]
[327058522,1715763039400,-276.26477197,0.00011924,2]
[327058523,1715763039410,-1533.08371307,0.00011925,2]
[327058524,1715763039419,-155.71437398,0.00011925,2]
[327058525,1715763039429,-155.77455359,0.00011925,2]
[327058526,1715763039438,-1470.72490702,0.00011925,2]
[327058527,1715763039447,-2002.352608,0.00011925,2]
[327058528,1715763039457,-155.11765272,0.00011925,2]
[327058529,1715763039466,-155.0,0.00011925,2]
[327058530,1715763039475,-155.0,0.00011925,2]
[327058531,1715763039484,-318.76754807,0.00011925,2]
[327058532,1715763039493,-177457.78064253,0.00011925,2]
[327058533,1715763039505,-362.26956143,0.00011925,2]
[327058534,1715763039523,-187038.84575557,0.00011925,2]
[327058535,1715763039533,-156.58758586,0.00011925,2]
[327058536,1715763039543,-213.07843743,0.00011925,2]
[327058537,1715763039552,-207.92488696,0.00011926,2]
[327058538,1715763039562,-5865.7372962,0.00011926,2]
[327058539,1715763039571,-1093.97727181,0.00011926,3]
[327058540,1715763039580,-1093.97727181,0.00011926,3]
[327058541,1715763039590,-1093.97727181,0.00011926,3]
[327058542,1715763039599,-602.0,0.00011926,2]
[327058543,1715763039608,-299562.9757909,0.00011926,2]
[327058544,1715763039618,-1500429.3767432,0.00011927,2]
[327058545,1715763039630,-1127046.69160525,0.00011927,2]
[327058546,1715763039642,-819236.53115778,0.00011927,2]
[327058547,1715763039653,-4308.03824832,0.00011927,2]
[327058548,1715763039664,-122310.09483409,0.00011927,2]
[327058549,1715763039676,-2486.51189688,0.00011927,2]
[327058550,1715763039695,-22049.79680951,0.00011927,2]
[327058551,1715763039706,-568.59559293,0.00011927,2]
[327058552,1715763039723,-6563.34065266,0.00011927,2]
[327058553,1715763039735,-523.78823262,0.00011927,2]
[327058554,1715763039746,-1490.7756,0.00011927,2]
[327058555,1715763039759,-1229.7413409,0.00011927,2]
[327058556,1715763039771,-328.92787868,0.00011927,2]
[327058564,1715763040394,-626.56,0.00011819,2]
[327058565,1715763040443,-5353.58866305,0.00011819,2]
[327058566,1715763040453,-2812.21508733,0.00011927,2]
[327058567,1715763040695,-887.23306406,0.00011927,2]
[327058568,1715763040708,-432.9166193,0.00011927,2]
[327058569,1715763040720,-533.97566937,0.00011927,2]
[327058570,1715763040934,-568.37329392,0.00011927,2]
[327058571,1715763040946,-527.66293941,0.00011927,2]
[327058698,1715763043408,-183.27059638,0.000119,2]
[327058699,1715763043417,-233.80211348,0.00011927,2]
[327058700,1715763043783,-397.815406,0.00011926,2]
[327058701,1715763043793,-8300.92526655,0.00011927,2]
[327058702,1715763043805,-418.8533999,0.00011927,2]
[327058703,1715763043818,-1273.47999999,0.00011927,2]
[327058704,1715763043838,-1080.05055866,0.00011927,2]
[327058705,1715763043850,-3720.0,0.00011927,2]
[327058706,1715763043861,-51453.54696995,0.00011927,2]
[327058707,1715763043872,-501757.98975244,0.00011927,2]
[327058708,1715763043888,-471.441,0.00011927,2]
[327058709,1715763043903,-5008.4238656,0.00011927,2]
[327058721,1715763046312,-458.05539148,0.00011228,2]
[327058722,1715763046323,-397.29554647,0.00011228,2]
[327058723,1715763046333,-217.08730024,0.00011925,2]
[327058724,1715763046342,-1310.98785233,0.00011925,2]
[327058725,1715763046353,-6199.68374148,0.00011925,2]
[327058726,1715763046362,-40738.77946213,0.00011927,2]
[327058727,1715763046380,-1401.88980761,0.00011927,2]
[327058728,1715763046391,-44931.87534401,0.00011927,2]
[327058729,1715763046416,-1001.69816861,0.00011927,2]
[327058730,1715763046470,-802.64257861,0.00011726,2]
[327058731,1715763046522,-740.05738686,0.00011726,2]
[327058732,1715763046534,-281.00881241,0.00011726,2]
[327058733,1715763046677,-4360.93,0.00011726,2]
[327058734,1715763046689,-15434.11270704,0.00011726,2]
[327058735,1715763046700,-7159.21580934,0.00011726,2]
[327058736,1715763046711,-19191.20691878,0.00011726,2]
[327058778,1715763066154,594.4474837,8.219e-05,2]
[327058779,1715763080224,9824.98894445,8.219e-05,2]
[327058780,1715763083378,480.01869346,8.219e-05,2]
[327058782,1715763123117,155.20370486,8.219e-05,2]
[327058783,1715763140917,156.09298751,8.219e-05,2]
[327058785,1715763751450,-600.0,8.853e-05,2]
[327058788,1715764037703,-260.48203453,8.523e-05,2]
[327058789,1715764037727,-155.0,8.524e-05,2]
[327058790,1715764037764,-1043.19481761,8.532e-05,2]
[327058791,1715764037789,-2541.32314786,8.533e-05,2]
[327058792,1715764038303,-383.34164911,8.533e-05,2]
[327058793,1715764060887,882.99402716,8.533e-05,2]
[327058794,1715764229910,176.48744636,8.533e-05,2]
[327058813,1715764231629,-508.81,8.534e-05,2]
[327058814,1715764231639,-942.38349998,8.853e-05,2]
[327058815,1715764231658,-3057.61650002,8.853e-05,2]
[327058816,1715764231668,-170.06,9.821e-05,2]
[327058817,1715764231677,-168.37339461,9.821e-05,2]
[327058818,1715764231687,-155.0,0.00010143,2]
[327058819,1715764231697,-160.72,0.00010144,2]
[327058820,1715764231706,-183.29453697,0.00010182,2]
[327058821,1715764231718,-16.70546303,0.00010182,2]
[327058822,1715764231728,-737.281554,0.00010182,2]
[327058823,1715764231747,-262.718446,0.00010182,2]
[327058824,1715764231756,-250.0,0.0001022,2]
[327058825,1715764231766,-19.08275902,0.00010279,2]
[327058865,1715764237520,-250.0,0.00010116,2]
[327058867,1715764237529,-408.999999,0.00010279,2]
[327058876,1715764237927,-65.15724198,0.00010279,2]
[327058878,1715764237936,-584.39275802,0.00010401,2]
[327058880,1715764237947,-216.24724198,0.00010401,2]
[327058882,1715764237957,-226.63,0.00010411,2]
[327058884,1715764237966,-1697.74513184,0.000105,2]
[327058886,1715764237975,-5000.0,0.00010584,2]
[327058888,1715764237984,-175.51,0.00010586,2]
[327058890,1715764237994,-165.33,0.00010716,2]
[327058892,1715764238003,-508.81,0.00010798,2]
[327058894,1715764238012,-523.78,0.00010932,2]
[327058896,1715764238022,-420.44,0.00010932,2]
[327058898,1715764238031,-523.66,0.00010978,2]
[327058900,1715764238040,-420.44,0.00010978,2]
[327058902,1715764238049,-459.43640249,0.00011,2]
[327058904,1715764238058,-200.0,0.00011,2]
[327058906,1715764238068,-868.43,0.00011096,2]
[327058908,1715764238078,-869.03,0.00011178,2]
[327058910,1715764238087,-523.66,0.00011178,2]
[327058912,1715764238096,-420.44,0.00011178,2]
[327058914,1715764238106,-260.80254729,0.00011278,2]
[327058916,1715764238115,-198.87732524,0.00011279,2]
[327058918,1715764238124,-299562.9757909,0.0001128,2]
[327058920,1715764238132,-1684116.21387181,0.0001128,2]
[327058922,1715764238144,-1127046.69160525,0.0001128,2]
[327058924,1715764238156,-819236.53115778,0.0001128,2]
[327059010,1715764239792,-444.74490446,0.0001128,2]
[327059011,1715764239804,-673.98575403,0.0001128,2]
[327059012,1715764239863,-288.62877803,0.0001128,2]
[327059013,1715764239934,-2712.70509554,0.0001128,2]
[327059014,1715764239945,-6378.8,0.0001128,2]
[327059060,1715764242721,-2804.56456268,0.0001128,2]
[327059064,1715764245519,-661.72323052,0.0001128,2]
[327059065,1715764245819,-725.84999999,0.0001128,2]
[327059082,1715764778071,483.37,8.506e-05,2]
[327059086,1715765188127,500.0,0.00021975,90]
[327059088,1715765294668,459.2,8.219e-05,2]
[327059101,1715765431812,-176.48744636,9.696e-05,2]
[327059102,1715765431822,-155.0,9.697e-05,2]
[327059103,1715765431832,-3500.0,9.749e-05,2]
[327059104,1715765431842,-2669.36969742,9.772e-05,2]
[327059105,1715765431854,-371.6925449,9.772e-05,2]
[327059106,1715765431865,-271.05628702,9.772e-05,2]
[327059107,1715765431912,-348.79677066,9.772e-05,2]
[327059108,1715765431921,-467.71330225,9.803e-05,2]
[327059109,1715765432004,-325.15669775,9.803e-05,2]
[327059110,1715765432014,-800.0,9.804e-05,2]
[327059111,1715765432023,-250.0,9.822e-05,2]
[327059112,1715765432033,-1624.84330225,9.872e-05,2]
[327059113,1715765432045,-872.67905712,9.872e-05,2]
[327059114,1715765432057,-540.396828,9.872e-05,2]
[327059115,1715765432068,-499.40807414,9.872e-05,2]
[327059296,1715765437738,-1555.6817275,9.695e-05,2]
[327059299,1715765437749,-1500.0,9.697e-05,2]
[327059301,1715765437759,-1627.23273849,9.872e-05,2]
[327059303,1715765437768,-170.06,9.88e-05,2]
[327059305,1715765437778,-250.0,9.919e-05,2]
[327059307,1715765437788,-163.16978517,0.00010263,2]
[327059309,1715765437797,-198.84,0.00010263,2]
[327059310,1715765437806,-868.43,0.00010329,2]
[327059312,1715765437815,-165.33,0.00010365,2]
[327059314,1715765437825,-163.16978509,0.00010378,2]
[327059317,1715765437834,-200.0,0.00010403,2]
[327059318,1715765437844,-226.8,0.00010411,2]
[327059321,1715765437853,-237.75,0.00010411,2]
[327059323,1715765437862,-869.03,0.00010441,2]
[327059324,1715765437873,-202.14,0.00010448,2]
[327059325,1715765437883,-459.2,0.00010465,2]
[327059326,1715765437892,-840.88,0.00010466,2]
[327059327,1715765437901,-1047.44,0.00010466,2]
[327059328,1715765437910,-163.16978509,0.00010492,2]
[327059329,1715765437919,-523.66,0.00010578,2]
[327059330,1715765437929,-163.16978509,0.00010607,2]
[327059331,1715765437938,-150.0,0.00010658,2]
[327059332,1715765437947,-150.0,0.00010658,2]
[327059333,1715765437956,-420.44,0.00010678,2]
[327059334,1715765437966,-163.16978509,0.00010722,2]
[327059335,1715765437976,-420.44,0.00010756,2]
[327059336,1715765437985,-523.66,0.00010756,2]
[327059337,1715765437995,-163.16978509,0.00010836,2]
[327059338,1715765438004,-163.16978509,0.00010951,2]
[327059339,1715765438014,-420.44,0.00010978,2]
[327059340,1715765438024,-459.43640249,0.00011,2]
[327059341,1715765438033,-200.0,0.00011,2]
[327059342,1715765438043,-800.0,0.00011029,2]
[327059343,1715765438052,-150.0,0.00011052,2]
[327059344,1715765438062,-163.16978509,0.00011065,2]
[327059345,1715765438071,-869.03,0.00011068,2]
[327059346,1715765438080,-858.37,0.00011068,2]
[327059347,1715765438090,-869.03,0.00011068,2]
[327059348,1715765438099,-869.03,0.00011068,2]
[327059349,1715765438108,-869.03,0.00011068,2]
[327059350,1715765438117,-869.03,0.00011068,2]
[327059351,1715765438127,-869.03,0.00011068,2]
[327059352,1715765438136,-869.03,0.00011068,2]
[327059353,1715765438144,-869.03,0.00011068,2]
[327059355,1715765438154,-867.5,0.00011068,2]
[327059357,1715765438163,-2126.0971,0.0001108,2]
[327059359,1715765438172,-6822.0811,0.0001108,2]
[327059360,1715765438181,-3000.0,0.0001117,2]
[327059361,1715765438190,-408.7557,0.0001118,2]
[327059362,1715765438200,-78060.7556,0.0001118,2]
[327059363,1715765438210,-48411.51142605,0.0001118,2]
[327059364,1715765438219,-8226.3603,0.0001118,2]
[327059366,1715765438229,-172.44379033,0.0001118,2]
[327059368,1715765438238,-43117.6372,0.0001118,2]
[327059370,1715765438248,-163.16978509,0.0001118,2]
[327059373,1715765438257,-272.31659497,0.0001118,2]
[327059376,1715765438267,-1562.13781289,0.00011214,2]
[327059379,1715765438276,-48411.511426,0.00011245,2]
[327059382,1715765438285,-150.63,0.00011252,2]
[327059384,1715765438294,-500.0,0.0001127,2]
[327059385,1715765438304,-500.0,0.0001127,2]
[327059386,1715765438315,-500.0,0.0001127,2]
[327059387,1715765438325,-500.0,0.0001127,2]
[327059388,1715765438335,-500.0,0.0001127,2]
[327059389,1715765438346,-389.13039446,0.0001127,2]
[327059390,1715765438356,-260.80254729,0.00011278,2]
[327059391,1715765438365,-500.0,0.00011278,2]
[327059392,1715765438374,-500.0,0.00011278,2]
[327059393,1715765438384,-500.0,0.00011278,2]
[327059394,1715765438394,-287.89247237,0.00011278,2]
[327059395,1715765438404,-155.81514836,0.00011278,2]
[327059396,1715765438413,-199.59753316,0.00011279,2]
[327059397,1715765438423,-299562.9757909,0.0001128,2]
[327059398,1715765438432,-1426976.4774404,0.0001128,2]
[327059399,1715765438444,-1127046.69160525,0.0001128,2]
[327059400,1715765438455,-819236.53115778,0.0001128,2]
[327059401,1715765438471,-51318.60416032,0.0001128,2]
[327059402,1715765438505,-3269.89847617,0.00011279,2]
[327059403,1715765438520,-6128.21040126,0.0001128,2]
[327059404,1715765438531,-4470.90884912,0.0001128,2]
[327059405,1715765438550,-1017.8135551,0.0001128,2]
[327059598,1715765442830,-194.91493898,9.694e-05,2]
[327059600,1715765442839,-410.39127525,0.00011278,2]
[327059602,1715765442849,-460.91090714,0.0001128,2]
[327059605,1715765442860,-4433.464,0.0001128,2]
[327059612,1715765442914,-5753.7006323,0.0001128,2]
[327059614,1715765442924,-1138.82,0.0001128,2]
[327059619,1715765443002,-356367.85111806,0.0001128,2]
[327059622,1715765443014,-177957.80768,0.0001128,2]
[327059638,1715765443166,-2968.23823805,0.0001128,2]
[327059687,1715765445721,-176.48744636,0.00011279,2]
[327059688,1715765445730,-127205.76803911,0.0001128,2]
[327059689,1715765445819,-6573.59869803,0.0001128,2]
[327059690,1715765445831,-105458.06646653,0.0001128,2]
[327059691,1715765445841,-200.0,0.0001128,2]
[327059692,1715765445850,-1000.0,0.000113,2]
[327059693,1715765445859,-8341.93353347,0.00011311,2]
[327059694,1715765446072,-170.362728,0.00011279,2]
[327059695,1715765446083,-658.10409049,0.00011311,2]
[327059696,1715765446094,-3150.39333094,0.00011311,2]
[327059702,1715765802526,413.28,8.418e-05,2]
[327059704,1715766348851,392.61,8.219e-05,2]
[327059755,1715766633974,-237.37321948,9.67e-05,2]
[327059756,1715766633987,-268.16087153,9.671e-05,2]
[327059757,1715766634000,-1205.08588127,9.671e-05,2]
[327059758,1715766634012,-216.74603263,9.672e-05,2]
[327059760,1715766634023,-80.3606365,9.673e-05,2]
[327059761,1715766634038,-742.95425643,9.673e-05,2]
[327059762,1715766634053,-486.51470674,9.673e-05,2]
[327059763,1715766634069,-3961.82198228,9.673e-05,2]
[327059764,1715766634080,-155.0,9.673e-05,2]
[327059765,1715766634092,-1009.62614997,9.674e-05,2]
[327059766,1715766634156,-129.51482203,9.674e-05,2]
[327059767,1715766634168,-155.0,9.722e-05,2]
[327059768,1715766634179,-512.0,9.726e-05,2]
[327059769,1715766634191,-520.0,9.88e-05,2]
[327059770,1715766634203,-150.0,9.94e-05,2]
[327059771,1715766634214,-52.29554013,9.954e-05,2]
[327059772,1715766634228,-197.70445987,9.954e-05,2]
[327059773,1715766634240,-1039.89226535,0.0001,2]
[327059774,1715766634255,-657.85286649,0.0001,2]
[327059775,1715766634267,-712.47939851,0.00010044,2]
[327059776,1715766634280,-129.667735,0.00010045,2]
[327059777,1715766634294,-370.322265,0.00010045,2]
[327059778,1715766634306,-598.22,0.00010046,2]
[327059779,1715766634319,-480.0,0.0001024,2]
[327059780,1715766634330,-1040.23629249,0.00010297,2]
[327059781,1715766634343,-789.21148886,0.00010358,2]
[327059782,1715766634354,-215.29,0.00010411,2]
[327059783,1715766634363,-155.0,0.00010417,2]
[327059784,1715766634373,-392.61,0.00010471,2]
[327059785,1715766634383,-175.49,0.0001048,2]
[327059786,1715766634392,-150.0,0.000108,2]
[327059787,1715766634647,-1249.2035,0.0001098,2]
[327059788,1715766634667,-5820.40075,0.00011,2]
[327059789,1715766634678,-1002.89891515,0.00011078,2]
[327059790,1715766634687,-34554.18282792,0.00011079,2]
[327059791,1715766634698,-15938.0169,0.0001108,2]